Cogmind - Beta 13 @@@ ROGUE MODE // 2024.03.30 @ 23:58:34 Player: SecretMink Result: Destroyed by G-34 Mercenary with Small Laser Performance ------------- Evolutions (0) 0 Regions Visited (1) 200 Robots Destroyed (10) 50 Value Destroyed (165) 165 Prototype IDs (0) 0 Alien Tech Used (0) 0 Bonus (0) 0 TOTAL SCORE: 415 Bonus ------- None Cogmind --------- Core Integrity 0/250 Matter 145/450 Energy 95/100 System Corruption 3% Temperature Cool (6) Movement Core (150) Ox2 Location -10/Materials Parts ------- > --- POWER (1) -------- (None) > --- PROPULSION (2) --- (None) > --- UTILITY (2) ------ Small Storage Unit Large Matter Pod > --- WEAPON (2) ------- Small Laser > --- INVENTORY (8) ---- Medium Matter Pod (0) Peak State ------------ > --- POWER ------------ Light Ion Engine > --- PROPULSION ------- Wheel Wheel > --- UTILITY ---------- Small Matter Pod Targeting Computer > --- WEAPON ----------- Small Laser Grenade Launcher > --- INVENTORY -------- (None) [Rating: 7] Favorites ----------- Power Light Ion Engine Engine Light Ion Engine Propulsion Wheel Wheel Wheel Utility Terrain Scanner Device Terrain Scanner Storage Small Storage Unit Processor Targeting Computer Weapon Small Laser Energy Gun Small Laser Ballistic Gun Assault Rifle Launcher Grenade Launcher Build | -11 -10 ------- Run | Yrd Mat Slots Evolved . | . . Power . | . . Propulsion . | . . Utility . | . . Weapon . | . . Parts Attached 17 | 5 12 Power 3 | 1 2 Engine 3 | 1 2 Core . | . . Reactor . | . . Propulsion 4 | 2 2 Treads . | . . Leg . | . . Wheel 4 | 2 2 Hover . | . . Flight . | . . Utility 6 | . 6 Device 1 | . 1 Storage 4 | . 4 Processor 1 | . 1 Hackware . | . . Protection . | . . Artifact . | . . Weapon 4 | 2 2 Energy Gun 2 | 1 1 Energy Cannon . | . . Ballistic Gun 1 | 1 . Ballistic Cannon . | . . Launcher 1 | . 1 Special Weapon . | . . Impact Weapon . | . . Slashing Weapon . | . . Piercing Weapon . | . . Special Melee Weapon . | . . Unidentified Prototypes . | . . Parts Lost 6 | . 6 Power 1 | . 1 Propulsion 2 | . 2 Utility 1 | . 1 Weapon 2 | . 2 Highest Loss Streak 3 | . 3 To Critical Strikes . | . . Average Slot Usage (%) 79 | . 79 Engine 12 | . 12 Wheel 18 | . 18 Device 10 | . 10 Storage 7 | . 7 Processor 5 | . 5 Energy Gun 13 | . 13 Launcher 8 | . 8 Naked Turns . | . . Heaviest Build 15 | 6 15 Greatest Support 20 | 20 20 Greatest Overweight (x) 3 | . 3 Average Overweight (x) . | . . Largest Inventory Capacity 8 | 5 8 Average Capacity 6 | 5 6 Most Carried 1 | . 1 Average Carried . | . . Final Capacity 8 | 5 8 Final Carried 1 | . 1 Class Distribution -------------------- 100% | Mutant Dominant Class ---------------- Mutant | -10/Materials Resources | -11 -10 ----------- Run | Yrd Mat Matter Collected 296 | 265 31 Remotely . | . . Salvage Created 159 | 68 91 Parts 16 | 4 12 Haulers Intercepted . | . . Recyclers Shooed . | . . Parts Field Recycled . | . . Retrieved Matter . | . . Parts Self-Destructed . | . . Prevented . | . . Kills | -11 -10 ------- Run | Yrd Mat Combat Hostiles Destroyed 6 | 1 5 Guns 2 | 1 1 AOE 4 | . 4 Classes Destroyed 5 | 2 3 Builder 2 | . 2 Tunneler 1 | 1 . Watcher 1 | . 1 Swarmer 3 | . 3 Grunt 3 | 1 2 Best Kill Streak 3 | 2 3 Combat Bots Only 3 | 1 3 Max Kills in Single Turn 2 | 1 2 Gunslinging . | . . Exploded 2 | . 2 Melee . | . . Uniques/NPCs Destroyed . | . . Combat | -11 -10 -------- Run | Yrd Mat Hostile Shots Fired 84 | 10 74 Missed 24 | 1 23 Damage Taken 712 | 108 604 Core 255 | 24 231 Absorbed by Shields . | . . Core Remaining (%) 90 | 90 . Volleys Fired 31 | 6 25 Largest 2 | 2 2 Hottest 70 | 60 70 Shots Fired 44 | 12 32 Gun 35 | 12 23 Cannon . | . . Launcher 9 | . 9 Special . | . . Kinetic 6 | 6 . Thermal 29 | 6 23 Explosive 9 | . 9 Electromagnetic . | . . Robot Hit Streak 5 | 2 5 Robot Miss Streak 3 | 2 3 Penetration Max . | . . Secondary Targets . | . . Shots Hit Robots 24 | 4 20 Core Hits 14 | 3 11 Critical Kills 1 | 1 . Critical Parts Destroyed . | . . Critical Strikes 1 | 1 . Destroy 1 | 1 . Melee Attacks . | . . Impact . | . . Slashing . | . . Piercing . | . . Sneak Attacks . | . . Combat Hostiles . | . . Follow-up Attacks . | . . Damage Inflicted 683 | 67 616 Guns 238 | 59 179 Cannons . | . . Explosions 437 | . 437 Melee . | . . Ramming 8 | 8 . Kinetic 38 | 38 . Thermal 200 | 21 179 Explosive 437 | . 437 Electromagnetic . | . . Impact . | . . Slashing . | . . Piercing . | . . Highest Corruption 3 | . 3 Average Corruption 2 | . 2 Corruption Purged . | . . Corruption Blocked . | . . Effects 8 | . 8 Message Errors 3 | . 3 Matter Fused 1 | . 1 Energy Discharges 1 | . 1 Data Loss (major) 2 | . 2 Misfires 1 | . 1 Overload Shots . | . . Overflow Damage 33 | . 33 Projectiles . | . . Explosions 33 | . 33 Melee . | . . Knockbacks . | . . Impact . | . . Kinetic . | . . Secondary . | . . Self-Inflicted Damage 69 | 4 65 Shots 3 | . 3 Rammed 1 | 1 . Targets Rammed 1 | 1 . Kicked . | . . Crushed . | . . Highest Temperature 30 | 12 30 Average Temperature 10 | 9 10 Received Heat Transfer 318 | 54 264 Siege Activations . | . . Robots Corrupted . | . . Combat Hostiles . | . . Parts Fried . | . . Impact Corruptions . | . . Robots Melted . | . . Combat Hostiles . | . . Parts Melted . | . . Heat Transferred 450 | 50 400 Parts Sabotaged . | . . Parts Stolen . | . . Parts Stripped . | . . Power Chain Reactions . | . . Alert | -11 -10 ------- Run | Yrd Mat Peak Influence 181 | 25 181 Initial 16 | . 16 Average 63 | 3 73 Maximum Alert Level . | . . Low Security (%) 100 | 100 100 Level 1 . | . . Level 2 . | . . Level 3 . | . . Level 4 . | . . Level 5 . | . . High Security . | . . Max Security . | . . Squads Dispatched 3 | . 3 Investigation 1 | . 1 Extermination . | . . Reinforcement 2 | . 2 Assault . | . . Garrison . | . . Intercept . | . . Searches Triggered . | . . Construction Impeded . | . . Haulers Reinforced . | . . Active Scanning Responses . | . . Cargo Convoy Interrupts . | . . Stealth | -11 -10 --------- Run | Yrd Mat Distress Signals . | . . Communications Jammed . | . . Distress Signals . | . . Times Spotted 17 | 1 16 Peak Tracking Total 4 | 1 4 Tactical Retreats 2 | . 2 Traps | -11 -10 ------- Run | Yrd Mat Traps Triggered 3 | . 3 Indirectly . | . . Trap Hack Attempts . | . . Triggered . | . . Disarmed . | . . Reprogrammed . | . . Reused . | . . Traps Extracted . | . . Installed . | . . Triggered . | . . Machines | -11 -10 ---------- Run | Yrd Mat Machines Disabled . | . . Max in Single Turn . | . . Machines Repaired . | . . Machines Dismantled . | . . Machines Sabotaged . | . . Overloaded Fab Kills . | . . Hacking | -11 -10 --------- Run | Yrd Mat Machines Accessed 1 | . 1 Terminals 1 | . 1 Fabricators . | . . Repair Stations . | . . Recycling Units . | . . Scanalyzers . | . . Garrison Access . | . . Total Hacks 2 | . 2 Successful 2 | . 2 Failed . | . . Catastrophic . | . . Database Lockouts . | . . Manual . | . . Terminals 2 | . 2 Fabricators . | . . Repair Stations . | . . Recycling Units . | . . Scanalyzers . | . . Garrison Access . | . . Terminal Hacks 2 | . 2 Locate Traps 1 | . 1 Recall Investigation 1 | . 1 Fabricator Hacks . | . . Repair Station Hacks . | . . Recycling Unit Hacks . | . . Scanalyzer . | . . Garrison Access Hacks . | . . Unauthorized Hacks . | . . Terminals . | . . Fabricators . | . . Repair Stations . | . . Recycling Units . | . . Scanalyzers . | . . Garrison Access . | . . Data Cores Recovered . | . . Used . | . . Hacking Detections . | . . Full Trace Events . | . . Feedback Events . | . . Feedback Blocked . | . . Robot Schematics Acquired . | . . Robots Built . | . . Authchips . | . . Time . | . . Total Robot Build Rating . | . . Part Schematics Acquired . | . . Parts Built . | . . Authchips . | . . Time . | . . Total Part Build Rating . | . . Parts Repaired . | . . Time . | . . Parts Recycled . | . . Recycled Matter . | . . Retrieved Matter . | . . Retrieved Components . | . . Parts Scanalyzed . | . . Part Schematics Acquired . | . . Parts Damaged . | . . Bothacking | -11 -10 ------------ Run | Yrd Mat Used RIF Installer . | . . Robots Hacked . | . . Non-combat . | . . Combat . | . . Robot Hacks Applied . | . . Relay Couplers Released . | . . Fabnet Peak Effective % . | . . Robots Rewired . | . . Allies Hacked . | . . Hacks Repelled . | . . Allies | -11 -10 -------- Run | Yrd Mat Total Allies . | . . Largest Group . | . . Highest-Rated Group . | . . Highest-Rated Ally . | . . Total Orders . | . . Ally Attacks . | . . Total Damage . | . . Kills . | . . Allies Corrupted . | . . Allies Melted . | . . Intel | -11 -10 ------- Run | Yrd Mat Robot Analysis Total . | . . Derelict Logs Recovered . | . . Drone Launches . | . . Drone Recoveries . | . . Exploration | -11 -10 ------------- Run | Yrd Mat Turns Passed 939 | 135 804 Spaces Moved 902 | 149 753 Core 159 | 36 123 Treads . | . . Legs . | . . Wheels 743 | 113 630 Hover . | . . Flight . | . . Fastest Speed 50 | 50 80 Average Speed 91 | 72 95 Slowest Speed 200 | 80 200 Overloaded Moves . | . . Propulsion Burnouts . | . . Robots Hopped . | . . Cave-ins Triggered . | . . Exploration Rate (%) 29 | 9 50 Regions Visited 1 Branch Regions . Pre-discovered Areas . | . . Known Exits Taken . | . . Unknown Exits Taken 1 | 1 . Scrap Searched . | . . Spaces Dug . | . . Terrain Destroyed 68 | . 68 Melee . | . . Projectile . | . . AOE 68 | . 68 Terrain Rammed . | . . Walls Destroyed . | . . Machines Disabled . | . . Actions | -11 -10 --------- Run | Yrd Mat Total 966 | 160 806 Wait 7 | . 7 Move 901 | 148 753 Hop . | . . Pick Up 1 | . 1 Fast Attach 16 | 5 11 Attach . | . . Detach . | . . Swap 1 | . 1 Drop 8 | . 8 Fire 31 | 6 25 Melee . | . . Ram 1 | 1 . Kick . | . . Crush . | . . Escape Stasis . | . . Rewire . | . . Trap . | . . Miscellaneous . | . . Route ------- -11/Scrapyard -10/Materials (discovered 2 exits: [*Mat] / [*Min]) History --------- Turn | Location | Event 2 | -11/Scrapyard | Met Revision 17 97 | -11/Scrapyard | Discovered new exit (range 8) 136 | -11/Scrapyard | Entered Materials 313 | -10/Materials | Build established: Mutant 561 | -10/Materials | Discovered new exit (range 8) 645 | -10/Materials | Discovered new exit (range 12) 707 | -10/Materials | Core integrity fell below 50% 721 | -10/Materials | Lost 3 parts (2n1w) 873 | -10/Materials | Core integrity fell below 20% 926 | -10/Materials | Lost 3 parts (1p1u1w) 940 | -10/Materials | Destroyed by G-34 Mercenary with Small Laser Last Messages --------------- R-06 Scavenger collects Welding Torch. R-06 Scavenger collects Terrain Scanner. K-01 Serf collects debris. Dropped Ion Engine. K-01 Serf collects debris. R-06 Scavenger collects Lgt. Ion Engine. K-01 Serf collects debris. R-06 Scavenger collects Sml. Laser. Acquired Ion Engine. R-06 Scavenger collects Structural Scanner. K-01 Serf collects debris. T% YSS ALHQ97QZ1N5R>M System corrupted: Substantial component data lost. Sml. Laser destroyed. Terrain Scanner destroyed. Ion Engine destroyed. Acquired Sml. Laser. Acquired Lrg. Matter Pod. [Achievement: First Step to Greatness] Map ----- +----------------------------------------------------+ | | | | | | | | | | | ?????????????????????????????????????????????????? | | ?????????????????????????????????????????????????? | | ?????????????????????????????????????????????????? | | ?????????????????????????????????????????????????? | | ??????????????????#####??????????????????????????? | | ??????????????????# #??????????????????????????? | | ??????????????????# < #??????????????????????????? | | ??????????????????# #????????????????????????#?? | | ??????????????????+ #??????????????????????????? | | ??????????????????# #????????????????#######???? | | ??????????????????# #???#??????????? ## ##### | | ??????????????????# ##????????????"" ## | | ??????????????????# #????????????? ### | | ??????????????????# #???????? ??? ?## | | ??????????????????# #??????????? ???## | | ??????????????????# ############+##???## | | ?????????????##???# ###### | | ??????????????????# + | | ??????????????????# ###### | | ????????? ?????#??# ########### #????# | | ????????????#?????# # @ ## #########+##+# | | ????????? ?#??##??# # ## | | ????????????#?###?# # """ g | | ???????? ?#???????# # """ ## | | ???"?? ???######## # """ #########T## #### | | ?????# # """ ##??????## # #?# | | ?"??????########## # """ ##????#??# / #?# | | ? ?????# """ ! # # #??????#?# # #?# | | ????????## "T" # # #????????### #?# | | ??? ??#??# " " / ###+######???#??????# #?# | | ?????????# # #????#???????# #?# | | ??? ?#???# # ############## ### | | ???????#?# # #?# | | ?????????################# ############## #?# | | ?? ????#????# ####???#?#?# #????#????##?# #?## | | ????????????##### ???? ?## #?##?#??? # # #### | | ??????????????#???"??????# #??#??????# ^ | | ?????? ????????????????#?# #??????#??## # | | ??? ???? ?? ??#??????????# #??????????### | | ?????????????##?#????????# ###########??######## | | ???????????????## ?????### # #?????????? | | ????????????????#####+## | # #????????#? | | ????????? ??# # * """ #??#?????## | | ??????#?#????# T + """ ########### | | ??????????? # """ + | +----------------------------------------------------+ Best States ------------- Heat Dissipation 25 Energy Generation 10 Energy Capacity 250 Matter Stores 300 Matter Capacity 450 Sight Range 16 Terrain Scan Range 14 Terrain Scan Density 10 Evasion (%) 50 Targeting Accuracy 5 Item Schematics ----------------- None Robot Schematics ------------------ None Fabricated ------------ Nothing Alien Tech Used ----------------- None Achievements -------------- First Step to Greatness Maybe Next Time I'll Detach My Launcher Uninvited Guest Challenges ------------ None Game ------ Seed MappingIonCoupler Manual? 0 Play Time 00:14:55 Cumulative 0.2 hours Start 2024.03.30 @ 23:42:26 End 2024.03.30 @ 23:58:34 Sessions 1 Manual Loads 0 Difficulty Rogue Special Mode None Game No. 1 Rogue 1 Adventurer 0 Explorer 0 Win Type - Total 0 Types 0/0/0/0/0/0/0/0/0 Lore% 0 Gallery% 1 Achievement% 1 Wizard Run 0 Options --------- Layout 1 ASCII 0 Keyboard 0 Movement Arrows Keybinds 0 Fullscreen 1 Font 32/SmallcapsGlow Map View 50x35 Zoom Use 0% Tactical HUD 0 Map Filters NONE Filters NONE Steam 0 RUN: b1a2e4a8-0491-43d1-9624-a870797a8b2b